bitfinex-derivatives/quotes_SOLF0:USTF0_20250703
["timestamp","ask_amount","ask_price","bid_price","bid_amount"]
[1751544841544,3.69055488,154.35,154.31,232.52]
[1751544841846,8.99765608,154.35,154.31,232.52]
[1751544842344,6.4772,154.34,154.31,232.52]
[1751544842643,3.69055488,154.35,154.31,232.52]
[1751544842844,3.69055488,154.33,154.31,232.52]
[1751544843046,3.69055488,154.32,154.29,44.68]
[1751544843249,3.69055488,154.3,154.26,559.6]
[1751544843544,10.17035488,154.28,154.26,559.6]
[1751544844548,10.16995488,154.29,154.26,559.6]
[1751544845347,6.4797,154.28,154.26,559.6]
[1751544848053,6.4797,154.28,154.27,187.82]
[1751544849848,6.03335111,154.35,154.27,187.82]
[1751544850049,3.69055488,154.32,154.27,187.82]
[1751544850351,6.4786,154.31,154.27,194.3]
[1751544850747,3.69055488,154.32,154.27,194.3]
[1751544851252,6.4786,154.31,154.27,194.3]
[1751544853751,6.4788,154.3,154.27,187.82]
[1751544854051,3.69055488,154.3,154.27,187.82]
[1751544854358,6.4795,154.29,154.27,187.82]
[1751544856555,3.69055488,154.3,154.27,187.82]
[1751544856753,3.69055488,154.3,154.25,51.1607]
[1751544857054,6.4793,154.29,154.26,187.82]
[1751544857254,3.69055488,154.3,154.26,187.82]
[1751544857456,6.4797,154.28,154.26,187.82]
[1751544858654,6.4797,154.28,154.25,51.1607]
[1751544858850,6.4797,154.28,154.26,187.82]
[1751544859556,3.69055488,154.3,154.26,187.82]
[1751544859850,3.69055488,154.3,154.25,44.68]
[1751544860055,6.4798,154.28,154.26,187.82]
[1751544861061,6.4794,154.29,154.26,187.82]
[1751544861262,6.03335111,154.35,154.26,187.82]
[1751544861462,6.479,154.3,154.26,187.82]
[1751544862458,6.479,154.3,154.26,194.3002]
[1751544864261,6.4791,154.29,154.26,194.3002]
[1751544865257,6.4796,154.28,154.26,187.82]
[1751544865458,3.69055488,154.29,154.26,187.82]
[1751544865864,6.4798,154.28,154.26,187.82]
[1751544866864,3.69055488,154.29,154.26,187.82]
[1751544867754,6.4796,154.28,154.26,187.82]
[1751544868456,6.4796,154.28,154.25,55.4912]
[1751544868656,6.48,154.27,154.26,187.78]
[1751544871068,6.48,154.27,154.25,49.0105]
[1751544871269,6.48,154.27,154.26,187.78]
[1751544871766,6.4798,154.28,154.26,187.78]
[1751544872971,6.48,154.27,154.25,49.0105]
[1751544873169,6.48,154.27,154.26,187.78]
[1751544873373,3.69055488,154.27,154.21,46.9938]
[1751544873669,10.17175488,154.25,154.22,187.78]
[1751544874772,10.17175488,154.25,154.22,194.2619]
[1751544875272,10.17175488,154.25,154.22,187.78]
[1751544875668,10.17175488,154.25,154.22,194.262]
[1751544875871,10.17175488,154.25,154.22,187.78]
[1751544876172,6.4812,154.24,154.22,187.78]
[1751544876573,6.03335111,154.3,154.22,187.78]
[1751544876773,5.27887203,154.29,154.23,6.4814]
[1751544877173,6.4802,154.27,154.23,6.4814]
[1751544878476,6.4802,154.27,154.24,6.4812]
[1751544878776,6.4802,154.27,154.25,187.78]
[1751544879373,6.03335111,154.35,154.26,48.35055488]
[1751544879578,8.97354877,154.34,154.26,52.88905488]
[1751544879781,6.4782,154.32,154.28,6.4795]
[1751544879972,6.4782,154.32,154.29,187.78]
[1751544881474,6.4776,154.33,154.29,194.259]
[1751544882280,6.4776,154.33,154.29,197.94955488]
[1751544884685,6.03335111,154.37,154.29,191.47055488]
[1751544884979,5.29812956,154.36,154.31,3.69055488]
[1751544885179,5.29812956,154.35,154.32,51.0775]
[1751544885481,6.4764,154.36,154.33,187.72]
[1751544889483,6.4766,154.35,154.33,187.72]
[1751544896886,6.4763,154.36,154.33,187.72]
[1751544897093,3.69055488,154.4,154.33,187.72]
[1751544897281,3.69055488,154.4,154.33,193.68485488]
[1751544897582,6.4757,154.38,154.33,193.68485488]
[1751544897991,6.4757,154.38,154.33,198.30375488]
[1751544898287,6.4758,154.37,154.33,198.30375488]
[1751544899188,3.69055488,154.36,154.32,44.6]
[1751544899389,3.69055488,154.36,154.32,232.22]
[1751544899684,6.4772,154.34,154.32,232.22]
[1751544900387,6.4774,154.33,154.32,232.22]
[1751544900585,3.69055488,154.36,154.32,232.22]
[1751544900786,3.69055488,154.36,154.32,44.6]
[1751544900988,6.4766,154.35,154.32,232.2]
[1751544901685,6.4766,154.35,154.32,238.6777]
[1751544902184,6.477,154.34,154.32,232.2]
[1751544904091,3.69055488,154.34,154.28,559.7]
[1751544904294,3.69055488,154.32,154.29,232.2]
[1751544905194,10.16855488,154.32,154.29,238.6788]
[1751544905694,10.16855488,154.32,154.3,187.58]
[1751544906285,6.478,154.32,154.3,187.58]
[1751544908489,3.69055488,154.32,154.29,44.6]
[1751544908690,3.69055488,154.32,154.3,187.58]
[1751544909694,6.4782,154.31,154.3,187.58]
[1751544913701,6.4786,154.3,154.29,44.6]
[1751544913895,6.4786,154.3,154.29,232.2]
[1751544914795,6.4784,154.31,154.29,232.2]
[1751544916003,3.69055488,154.3,154.25,4.5356]
[1751544916196,3.69055488,154.3,154.26,44.56]
[1751544916391,3.69055488,154.3,154.27,187.58]
[1751544917501,6.4796,154.28,154.27,187.58]
[1751544917704,3.69055488,154.28,154.26,44.56]
[1751544917904,3.69055488,154.28,154.26,232.14]
[1751544918606,6.4799,154.27,154.26,232.14]
[1751544918906,6.4799,154.27,154.26,44.56]
[1751544919105,6.4799,154.27,154.26,232.14]
[1751544921508,6.4799,154.27,154.26,44.56]
[1751544921709,6.4799,154.27,154.26,232.16]
[1751544921898,3.69055488,154.28,154.23,559.72]
[1751544921899,6.4811,154.24,154.23,559.72]
[1751544922101,6.4811,154.24,154.23,747.3]
[1751544924509,6.4809,154.25,154.23,747.3]
[1751544925111,6.4811,154.24,154.23,747.3]
[1751544928212,6.4811,154.24,154.23,559.72]
[1751544928411,6.4811,154.24,154.23,747.32]
[1751544934613,6.4805,154.26,154.23,747.32]
[1751544934819,3.69055488,154.28,154.23,747.32]
[1751544935118,6.4809,154.25,154.23,747.32]
[1751544935616,6.4809,154.25,154.23,753.8013]
[1751544937419,10.17095488,154.26,154.23,753.8013]
[1751544938618,6.4808,154.25,154.23,747.32]
[1751544939617,6.4808,154.25,154.23,753.8015]
[1751544940623,6.4804,154.26,154.23,753.8015]
[1751544942023,6.4807,154.25,154.23,753.8015]
[1751544944828,6.4811,154.24,154.23,559.72]
[1751544945018,6.4811,154.24,154.23,747.32]
[1751544945218,3.69055488,154.25,154.22,44.56]
[1751544945414,6.4815,154.23,154.22,44.56]
[1751544945618,6.4815,154.23,154.22,232.14]
[1751544947020,10.17205488,154.23,154.22,232.14]
[1751544947924,10.17205488,154.23,154.22,232.16]
[1751544948426,10.17205488,154.23,154.22,232.14]
[1751544953122,10.17205488,154.23,154.22,44.56]
[1751544953422,10.17205488,154.23,154.22,232.16]
[1751544955829,6.4815,154.23,154.22,232.16]
[1751544958931,6.01784527,154.28,154.19,6.483]
[1751544959230,5.28990455,154.27,154.2,187.58]
[1751544959431,5.28990455,154.26,154.2,187.58]
[1751544959632,5.28990455,154.25,154.2,187.58]
[1751544959827,6.01784527,154.28,154.2,187.58]
[1751544960130,5.29215783,154.27,154.2,187.58]
[1751544960432,5.29215783,154.26,154.2,187.58]
[1751544960633,5.29215783,154.25,154.2,187.58]
[1751544960833,5.29215783,154.24,154.2,187.58]
[1751544961034,6.01784527,154.28,154.2,194.0626]
[1751544961233,5.29343319,154.27,154.2,194.0626]
[1751544961433,5.29343319,154.26,154.2,194.0626]
[1751544961630,5.29343319,154.25,154.2,194.0626]
[1751544961832,5.29343319,154.24,154.2,194.0626]
[1751544962034,6.4819,154.23,154.2,194.0626]
[1751544966239,8.25994956,154.3,154.2,187.58]
[1751544966427,5.3015604,154.29,154.21,2.2312]
[1751544966627,6.4788,154.3,154.27,6.4796]
[1751544966933,6.4788,154.3,154.28,187.58]
[1751544967837,6.04514956,154.34,154.28,187.58]
[1751544968037,5.29979267,154.33,154.28,187.58]
[1751544968229,5.29979267,154.32,154.28,187.58]
[1751544968538,5.29979267,154.31,154.28,187.58]
[1751544968840,6.04514956,154.35,154.28,187.58]
[1751544969034,5.2978702,154.34,154.28,187.58]
[1751544969230,5.2978702,154.33,154.28,187.58]
[1751544969430,5.2978702,154.32,154.28,187.58]
[1751544969627,6.479,154.29,154.28,187.58]
[1751544970935,6.4787,154.3,154.28,187.58]
[1751544971242,6.04514956,154.35,154.28,194.0591]
[1751544971435,6.4784,154.31,154.28,187.58]
[1751544971934,6.478,154.32,154.28,187.58]
[1751544972134,6.04514956,154.36,154.28,187.58]
[1751544972336,5.32183024,154.35,154.28,194.2239]
[1751544972541,6.4775,154.33,154.3,6.4783]
[1751544972736,6.4775,154.33,154.31,187.52]
[1751544973342,6.4778,154.32,154.31,187.52]
[1751544973744,6.04514956,154.37,154.31,187.52]
[1751544973938,5.31752472,154.36,154.31,187.52]
[1751544974139,5.31752472,154.35,154.31,187.52]
[1751544974340,6.4776,154.33,154.31,187.52]
[1751544975749,6.4776,154.33,154.32,44.52]
[1751544986756,6.4782,154.31,154.3,187.44]
[1751544988763,6.479,154.29,154.28,44.5]
[1751544997979,6.4788,154.3,154.28,44.5]
[1751544998471,6.4783,154.31,154.28,44.5]
[1751544999067,6.4783,154.31,154.28,50.9792]
[1751544999373,2.2204,154.36,154.28,44.5]
[1751544999576,5.30428651,154.35,154.28,44.5]
[1751544999774,5.30428651,154.35,154.29,6.479]
[1751544999974,6.4782,154.31,154.3,187.44]
[1751545000275,2.2204,154.36,154.3,187.44]
[1751545000476,5.30500566,154.36,154.3,193.9185]
[1751545000872,6.4775,154.33,154.3,193.9185]
[1751545002076,6.4775,154.33,154.31,6.4782]
[1751545002775,6.4775,154.33,154.3,193.9184]
[1751545005778,6.478,154.32,154.3,187.44]
[1751545005980,2.3134,154.37,154.3,187.44]
[1751545006279,6.478,154.32,154.3,187.44]
[1751545010882,6.4776,154.33,154.3,193.9184]
[1751545014484,6.4776,154.33,154.31,6.4781]
[1751545015281,6.4776,154.33,154.3,193.9184]
[1751545016779,3.69394642,154.35,154.3,193.9184]
[1751545016982,5.34711626,154.34,154.3,193.9184]
[1751545017184,3.69394642,154.35,154.3,193.9184]
[1751545017388,6.4776,154.33,154.3,193.9184]
[1751545018781,6.4776,154.33,154.3,6.4784]
[1751545018982,3.69394642,154.35,154.31,231.84]
[1751545019286,5.34290128,154.34,154.31,231.84]
[1751545019479,6.4775,154.33,154.31,231.84]
[1751545021984,6.4771,154.34,154.31,231.84]
[1751545022584,3.69394642,154.36,154.31,238.318]
[1751545022782,5.34468918,154.35,154.31,238.318]
[1751545022988,3.69394642,154.36,154.31,238.318]
[1751545023189,6.477,154.34,154.31,238.318]
[1751545023486,119.63651125,154.39,154.31,231.84]
[1751545023682,9.03859744,154.38,154.31,231.84]
[1751545023989,5.34465102,154.37,154.32,6.4776]
[1751545024186,5.34465102,154.36,154.31,235.53394642]
[1751545024393,6.4762,154.36,154.31,235.53394642]
[1751545024688,6.4762,154.36,154.33,6.4772]
[1751545024889,6.4762,154.36,154.34,187.34]
[1751545025890,6.4765,154.35,154.34,187.34]
[1751545026285,3.69394642,154.38,154.34,187.34]
[1751545026486,5.3407449,154.37,154.34,187.34]
[1751545026691,5.3407449,154.36,154.34,187.34]
[1751545026990,3.69394642,154.38,154.34,187.34]
[1751545027193,6.4765,154.35,154.34,187.34]
[1751545027588,6.4762,154.36,154.34,187.34]
[1751545027780,3.69394642,154.38,154.34,187.34]
[1751545027986,5.3420766,154.37,154.34,187.34]
[1751545028182,6.4765,154.35,154.34,187.34]
[1751545028390,3.69394642,154.38,154.34,187.34]
[1751545028588,5.34145529,154.37,154.34,187.34]
[1751545028784,6.4764,154.36,154.34,187.34]
[1751545029994,8.83892869,154.37,154.34,193.8169]
[1751545030195,8.83892869,154.37,154.34,196.18002869]
[1751545030390,6.4758,154.37,154.35,2.36312869]
[1751545031395,6.4758,154.37,154.34,189.70312869]
[1751545031597,2.36312869,154.35,154.34,187.34]
[1751545031796,2.36312869,154.35,154.33,187.3]
[1751545032396,2.36312869,154.34,154.31,46.84312869]
[1751545032591,2.36312869,154.33,154.32,187.3]
[1751545032795,6.4773,154.33,154.31,44.48]
[1751545032997,6.4773,154.33,154.32,187.3]
[1751545037800,6.4773,154.33,154.31,50.9581]
[1751545037801,6.4778,154.32,154.31,44.48]
[1751545038199,11.8229445,154.32,154.31,44.48]
[1751545038400,6.4778,154.32,154.31,44.48]
[1751545039306,11.82482869,154.32,154.31,44.48]
[1751545040305,11.82482869,154.32,154.31,231.78]
[1751545041505,11.82482869,154.32,154.31,44.48]
[1751545041707,11.82482869,154.32,154.31,231.78]
[1751545050706,6.4778,154.32,154.31,231.78]
[1751545052509,11.82289248,154.32,154.31,231.78]
[1751545053808,14.18750804,154.32,154.31,231.78]
[1751545054301,11.82289248,154.32,154.31,231.78]
[1751545054503,14.18750804,154.32,154.31,231.78]
[1751545055806,7.70970804,154.32,154.27,6.4796]
[1751545056109,8.37167074,154.36,154.28,231.76]
[1751545056110,2.36461556,154.31,154.28,231.76]
[1751545057510,6.4786,154.3,154.28,238.2392]
[1751545058211,6.4786,154.3,154.29,187.3]
[1751545060512,6.4784,154.31,154.29,187.3]
[1751545061013,6.4784,154.31,154.29,193.7789]
[1751545061812,6.4784,154.31,154.29,187.3]
[1751545063203,2.36461556,154.32,154.29,187.3]
[1751545063204,6.4779,154.32,154.29,196.14361556]
[1751545063407,2.36461556,154.33,154.29,196.14361556]
[1751545063618,5.34321199,154.35,154.32,2.36310793]
[1751545063914,6.4767,154.35,154.33,234.10310793]
[1751545064418,2.36310793,154.35,154.33,44.46]
[1751545064610,7.70635785,154.34,154.33,231.74]
[1751545065115,6.4784,154.31,154.29,44.44]
[1751545065413,6.4784,154.31,154.3,187.28]
[1751545065621,6.4779,154.32,154.3,187.28]
[1751545067116,6.4779,154.32,154.3,193.7586]
[1751545067316,6.4782,154.31,154.3,187.28]
[1751545067614,6.4782,154.31,154.3,189.64310793]
[1751545067818,6.4782,154.31,154.3,187.28]
[1751545068317,6.478,154.32,154.3,187.28]
[1751545069611,6.478,154.32,154.3,193.7586]
[1751545069813,6.478,154.32,154.3,187.28]
[1751545070814,6.4782,154.31,154.3,187.28]
[1751545071018,2.36310793,154.34,154.3,187.28]
[1751545071224,5.35023122,154.33,154.3,187.28]
[1751545071424,6.478,154.32,154.3,187.28]
[1751545074719,6.4782,154.31,154.3,187.28]
[1751545075017,2.36310793,154.34,154.3,187.28]
[1751545075219,5.35214852,154.33,154.3,187.28]
[1751545075420,11.83014852,154.32,154.3,187.28]
[1751545075618,6.478,154.32,154.3,187.28]
[1751545076319,2.36310793,154.34,154.3,187.28]
[1751545076522,5.35556401,154.33,154.3,187.28]
[1751545076820,5.35556401,154.32,154.3,187.28]
[1751545077021,6.4781,154.32,154.3,187.28]
[1751545077222,2.36310793,154.34,154.3,187.28]
[1751545077520,6.478,154.32,154.3,187.28]
[1751545078117,6.4782,154.31,154.3,187.28]
[1751545079122,6.478,154.32,154.3,193.7586]
[1751545079822,6.478,154.32,154.3,187.28]
[1751545080324,11.83548755,154.31,154.3,187.28]
[1751545080517,11.83548755,154.31,154.29,44.44]
[1751545080720,6.4782,154.31,154.3,187.26]
[1751545081022,11.83542453,154.31,154.3,187.26]
[1751545092723,7.72033246,154.31,154.25,559.98]
[1751545092922,2.36310793,154.26,154.25,604.42]
[1751545093116,2.36310793,154.26,154.25,791.64]
[1751545093315,2.36310793,154.27,154.25,791.64]
[1751545093520,2.36310793,154.29,154.25,794.00310793]
[1751545093718,7.71963622,154.28,154.25,794.00310793]
[1751545093917,2.36310793,154.28,154.25,794.00310793]
[1751545094521,6.4799,154.27,154.25,800.48360793]
[1751545095122,2.36310793,154.27,154.25,791.64]
[1751545095525,2.36310793,154.27,154.26,187.22]
[1751545096023,8.84330793,154.27,154.25,604.42]
[1751545096223,8.84330793,154.27,154.26,187.22]
[1751545096624,6.4803,154.26,154.25,604.42]
[1751545096832,6.4803,154.26,154.25,44.44]
[1751545096833,8.84340793,154.26,154.25,44.44]
[1751545097025,2.36310793,154.26,154.23,187.22]
[1751545097230,2.36310793,154.24,154.23,187.22]
[1751545097423,2.36310793,154.24,154.21,44.44]
[1751545097624,2.36310793,154.23,154.22,187.24]
[1751545097824,7.71220245,154.23,154.22,187.24]
[1751545098027,14.19370245,154.23,154.22,187.24]
[1751545098226,8.84460793,154.23,154.22,187.24]
[1751545098429,6.482,154.22,154.21,44.44]
[1751545098627,8.84510793,154.22,154.21,231.68]
[1751545099632,8.84510793,154.22,154.21,44.44]
[1751545099835,8.84510793,154.22,154.21,231.7]
[1751545100127,8.84510793,154.22,154.21,44.44]
[1751545109137,6.482,154.22,154.21,44.44]
[1751545109840,8.84510793,154.22,154.21,44.44]
[1751545114139,6.482,154.22,154.21,44.44]
[1751545114338,8.84510793,154.22,154.21,44.44]
[1751545115741,8.84480793,154.23,154.21,50.9224]
[1751545116040,8.84480793,154.23,154.22,187.3]
[1751545116839,6.4817,154.23,154.22,187.3]
[1751545117343,2.36310793,154.24,154.22,193.7819]
[1751545118237,8.84430793,154.24,154.22,193.7819]
[1751545118633,8.84430793,154.24,154.22,187.3]
[1751545122542,8.84430793,154.24,154.22,193.782]
[1751545125444,8.84430793,154.24,154.22,187.3]
[1751545125944,6.4815,154.23,154.22,187.3]
[1751545132053,8.84440793,154.24,154.22,187.3]
[1751545134753,8.84440793,154.24,154.22,193.7817]
[1751545136158,12.9642,154.22,154.12,44.44]
[1751545136350,5.27924801,154.21,154.13,189.6292779]
[1751545136554,6.4834,154.19,154.16,8.8535779]
[1751545136857,6.03485499,154.27,154.18,2.3692779]
[1751545137057,2.3692779,154.23,154.19,2.3692779]
[1751545137249,2.3692779,154.24,154.2,189.6292779]
[1751545137455,5.28243304,154.24,154.21,187.26]
[1751545137653,6.4823,154.22,154.21,187.26]
[1751545145259,6.06014387,154.27,154.21,187.26]
[1751545145464,5.29395259,154.26,154.22,44.44]
[1751545145761,5.29395259,154.25,154.22,44.44]
[1751545145962,3.69882946,154.27,154.22,44.44]
[1751545146359,6.06014387,154.28,154.23,3.69882946]
[1751545146559,9.75897333,154.3,154.23,3.69882946]
[1751545146765,3.69882946,154.3,154.23,3.69882946]
[1751545147165,6.4797,154.28,154.24,6.4808]
[1751545147365,6.4797,154.28,154.25,187.26]
[1751545147958,6.4797,154.28,154.25,193.7407]
[1751545148163,6.4792,154.29,154.25,187.26]
[1751545149354,6.4792,154.29,154.26,6.48]
[1751545150465,10.17762946,154.3,154.27,50.9198]
[1751545150655,3.69882946,154.32,154.27,44.44]
[1751545150862,10.17682946,154.32,154.27,44.44]
[1751545151060,6.04752946,154.34,154.27,44.44]
[1751545151261,6.04752946,154.34,154.27,48.13882946]
[1751545151864,6.478,154.32,154.29,6.4788]
[1751545152067,6.04752946,154.34,154.29,193.6988]
[1751545152267,5.30101333,154.33,154.29,193.6988]
[1751545153068,6.4778,154.32,154.29,193.6988]
[1751545154668,6.4782,154.31,154.29,193.6988]
[1751545155671,6.4782,154.31,154.29,187.22]
[1751545155870,6.4786,154.3,154.29,187.22]
[1751545156373,10.17742946,154.3,154.29,187.22]
[1751545158576,3.69882946,154.3,154.27,44.44]
[1751545159977,6.4794,154.28,154.27,44.44]
[1751545162369,10.17822946,154.28,154.27,44.44]
[1751545162771,6.4807,154.25,154.23,44.4]
[1751545162973,3.69882946,154.26,154.23,231.58]
[1751545163173,3.69882946,154.26,154.24,6.4809]
[1751545163381,10.17932946,154.26,154.24,6.4809]
[1751545164085,10.17932946,154.26,154.23,238.0614]
[1751545164791,6.4805,154.26,154.24,6.4811]
[1751545165088,6.4805,154.26,154.23,231.58]
[1751545165286,3.69882946,154.28,154.23,231.58]
[1751545166288,10.17862946,154.28,154.25,6.4805]
[1751545166588,10.17862946,154.28,154.26,187.22]
[1751545166789,10.17862946,154.28,154.26,193.7003]
[1751545168387,10.17862946,154.28,154.26,187.22]
[1751545168789,6.4799,154.27,154.26,187.22]
[1751545171392,3.69882946,154.28,154.26,187.22]
[1751545172695,6.4799,154.27,154.26,187.22]
[1751545176688,6.4806,154.26,154.24,187.32]
[1751545177095,3.69882946,154.28,154.24,187.32]
[1751545177488,6.4807,154.25,154.24,187.32]
[1751545177989,6.4805,154.26,154.24,193.801]
[1751545179595,6.4801,154.27,154.24,187.32]
[1751545180592,6.4801,154.27,154.24,193.8009]
[1751545182594,6.4803,154.26,154.24,193.8009]
[1751545183597,6.4803,154.26,154.24,187.32]
[1751545183892,6.4807,154.25,154.24,187.32]
[1751545185200,6.4805,154.26,154.24,187.32]
[1751545185896,6.4807,154.25,154.24,187.32]
[1751545186999,6.4811,154.24,154.23,44.4]
[1751545187299,6.4811,154.24,154.23,231.72]
[1751545190901,10.17992946,154.24,154.23,231.72]
[1751545191202,6.4811,154.24,154.23,231.72]
[1751545191501,3.69882946,154.26,154.23,231.72]
[1751545191901,6.4811,154.24,154.23,231.72]
[1751545192704,10.17992946,154.24,154.23,231.72]
[1751545193106,10.17992946,154.24,154.23,44.4]
[1751545193403,10.17992946,154.24,154.23,231.94]
[1751545200709,10.17992946,154.24,154.23,231.82]
[1751545208321,6.4811,154.24,154.23,231.82]
[1751545210021,10.17992946,154.24,154.23,231.82]
[1751545211218,6.4811,154.24,154.23,231.82]
[1751545215923,8.84814261,154.24,154.23,231.82]
[1751545218227,2.36704261,154.24,154.22,187.66]
[1751545218426,2.36704261,154.23,154.22,187.66]
[1751545218920,8.84854261,154.23,154.22,187.66]
[1751545219423,6.4815,154.23,154.22,187.66]
[1751545219621,8.84854261,154.23,154.22,187.66]
[1751545220724,2.36704261,154.23,154.18,560.08]
[1751545220930,2.2597,154.26,154.19,187.8]
[1751545220931,6.03492892,154.24,154.19,187.8]
[1751545221223,8.32622892,154.24,154.19,187.8]
[1751545221622,6.03492892,154.23,154.19,187.8]
[1751545222027,2.36704261,154.2,154.19,187.8]
[1751545222428,8.84984261,154.2,154.19,187.8]
[1751545223832,10.18383181,154.2,154.19,187.8]
[1751545224527,10.18383181,154.2,154.17,50.924]
[1751545224528,6.4832,154.19,154.17,50.924]
[1751545224728,6.4832,154.19,154.18,187.72]
[1751545230634,3.70103181,154.2,154.18,187.72]
[1751545231034,10.18403181,154.2,154.18,187.72]
[1751545231226,10.18403181,154.2,154.18,194.2036]
[1751545232335,10.18403181,154.2,154.18,187.72]
[1751545233337,6.4832,154.19,154.18,187.72]
[1751545240045,6.4836,154.18,154.17,231.9]
[1751545240244,10.18463181,154.18,154.17,231.9]
[1751545242240,6.4836,154.18,154.17,231.9]
[1751545242445,10.18463181,154.18,154.17,231.9]
[1751545243854,10.18463181,154.18,154.17,44.44]
[1751545244048,6.4855,154.14,154.13,44.44]
[1751545244241,3.70103181,154.14,154.09,4.51796541]
[1751545244446,3.70103181,154.1,154.01,56.55102362]
[1751545244743,6.03492892,154.12,154.03,187.62]
[1751545244941,2.1996,154.13,154.03,193.63573181]
[1751545245142,6.03492892,154.13,154.09,3.70103181]
[1751545245341,3.70103181,154.19,154.11,3.70103181]
[1751545245542,3.70103181,154.2,154.13,3.70103181]
[1751545245743,8.85332484,154.17,154.14,2.36892484]
[1751545245944,2.36892484,154.16,154.15,187.98]
[1751545246345,2.36892484,154.16,154.15,188.0]
[1751545246749,2.1996,154.23,154.15,188.0]
[1751545246945,2.36892484,154.17,154.15,188.0]
[1751545247151,2.1996,154.23,154.15,188.0]
[1751545247345,6.483,154.2,154.15,190.36892484]
[1751545247652,2.36892484,154.2,154.16,2.36892484]
[1751545248354,2.36892484,154.2,154.17,6.4838]
[1751545248653,2.36892484,154.2,154.18,188.08]
[1751545249852,6.4826,154.21,154.18,188.08]
[1751545250151,6.4826,154.21,154.18,194.5636]
[1751545251056,3.70021378,154.22,154.18,194.5636]
[1751545251458,3.70021378,154.22,154.18,188.08]
[1751545251645,3.70021378,154.2,154.18,188.08]
[1751545252256,6.4832,154.19,154.18,188.08]
[1751545255955,10.18321378,154.2,154.18,188.08]
[1751545257566,6.4832,154.19,154.18,188.08]
[1751545258257,11.84309518,154.19,154.18,188.08]
[1751545262362,6.4849,154.16,154.12,49.3194]
[1751545262562,3.70021378,154.17,154.13,187.82]
[1751545262859,5.36616511,154.16,154.12,55.8053]
[1751545263061,3.70021378,154.17,154.12,237.1794]
[1751545263262,6.4856,154.14,154.12,237.1794]
[1751545263763,6.4856,154.14,154.12,237.1994]
[1751545264561,6.4856,154.14,154.12,243.6855]
[1751545267164,6.4856,154.14,154.12,237.1994]
[1751545268566,6.4856,154.14,154.12,243.6855]
[1751545270568,8.04379339,154.21,154.13,3.70021378]
[1751545270773,2.2207,154.24,154.17,3.70021378]
[1751545270774,5.35454597,154.2,154.17,3.70021378]
[1751545271066,6.4822,154.22,154.18,187.82]
[1751545271259,8.04379339,154.24,154.19,3.70021378]
[1751545271463,8.04379339,154.24,154.19,8.19381378]
[1751545271660,8.04379339,154.24,154.22,6.4819]
[1751545271864,2.3665194,154.25,154.22,196.8484194]
[1751545272263,6.4809,154.25,154.22,194.4819]
[1751545272463,2.3665194,154.26,154.22,190.3665194]
[1751545272660,2.3665194,154.26,154.23,2.3665194]
[1751545272865,8.8466194,154.27,154.23,2.3665194]
[1751545273768,6.4801,154.27,154.24,6.4808]
[1751545274066,6.4801,154.27,154.25,188.04]
[1751545274674,6.4797,154.28,154.25,188.04]
[1751545275371,6.4799,154.27,154.25,188.04]
[1751545276465,3.69706221,154.29,154.25,188.04]
[1751545276466,6.4803,154.26,154.25,188.04]
[1751545276772,3.69706221,154.29,154.25,188.04]
[1751545277073,6.4799,154.27,154.25,188.04]
[1751545278068,6.4796,154.28,154.25,188.04]
[1751545278269,3.69706221,154.3,154.25,188.04]